bitfinex-derivatives/quotes_SOLF0:USTF0_20251223
["timestamp","ask_amount","ask_price","bid_price","bid_amount"]
[1766455651763,0.06103126,126.2,126.17,0.05723491]
[1766455653457,0.06103126,126.2,126.17,3.54723491]
[1766455655365,0.00103126,126.2,126.17,3.54723491]
[1766455661972,0.00103126,126.2,126.17,10.68443491]
[1766455662169,0.00103126,126.2,126.18,3.44]
[1766455662468,0.00103126,126.2,126.19,97.06]
[1766455671075,8.3514,126.28,126.2,3.44]
[1766455671271,1.22,126.27,126.2,3.44]
[1766455671866,1.22,126.29,126.22,3.44]
[1766455672070,1.22,126.29,126.24,0.05223303]
[1766455672275,0.05586225,126.27,126.24,0.05223303]
[1766455672465,0.05586225,126.27,126.24,3.49223303]
[1766455675369,1.22,126.29,126.24,3.49223303]
[1766455675567,1.22,126.31,126.24,3.49223303]
[1766455676669,0.05886133,126.29,126.24,3.49223303]
[1766455680876,2.77866715,126.32,126.25,3.44]
[1766455681083,2.77866715,126.32,126.27,3.44]
[1766455681379,1.22,126.33,126.27,3.44]
[1766455681686,5.48945363,126.35,126.29,3.49036421]
[1766455681873,5.48945363,126.35,126.3,97.02]
[1766455683782,5.48945363,126.35,126.3,3.44]
[1766455683981,5.48945363,126.35,126.3,97.0]
[1766455684880,1.22,126.34,126.29,0.05036421]
[1766455685183,1.22,126.34,126.29,93.61036421]
[1766455686978,4.26945363,126.35,126.3,3.35]
[1766455696584,6.949e-05,126.35,126.3,3.35]
[1766455696982,6.949e-05,126.35,126.32,3.35]
[1766455697185,6.949e-05,126.35,126.33,96.89]
[1766455697386,6.949e-05,126.35,126.34,3.35]
[1766455698994,6.949e-05,126.35,126.34,96.87]
[1766455699298,4.53857548,126.42,126.35,3.35]
[1766455699495,4.53857548,126.42,126.37,0.05814793]
[1766455699995,1.22,126.42,126.37,0.05814793]
[1766455700196,1.22,126.44,126.39,3.35]
[1766455700491,1.22,126.46,126.4,3.40778456]
[1766455702094,3.33508416,126.46,126.4,3.40778456]
[1766455703396,1.22,126.45,126.4,0.05778456]
[1766455703601,3.33508416,126.44,126.4,0.05778456]
[1766455703803,3.33508416,126.44,126.41,0.06048826]
[1766455705096,2.11508416,126.44,126.41,0.06048826]
[1766455705397,2.11508416,126.43,126.41,0.00048826]
[1766455705799,1.16,126.42,126.34,10.4777]
[1766455705996,3.27508416,126.41,126.35,93.48]
[1766455706411,3.27508416,126.41,126.35,96.83]
[1766455706694,1.16,126.43,126.36,3.35]
[1766455706900,0.00449411,126.39,126.37,3.40228933]
[1766455708098,0.00449411,126.39,126.37,0.05228933]
[1766455709203,7.122,126.45,126.37,3.40228933]
[1766455709204,2.11508416,126.44,126.37,3.40228933]
[1766455709394,2.11508416,126.44,126.37,3.35]
[1766455710105,2.11508416,126.44,126.39,0.05853151]
[1766455710494,3.32508416,126.44,126.39,0.05853151]
[1766455710697,3.26508416,126.42,126.36,93.48]
[1766455711704,0.05852267,126.4,126.38,0.0560977]
[1766455712208,3.32360683,126.4,126.33,3.5]
[1766455713104,3.32360683,126.4,126.35,0.05516089]
[1766455714711,2.17360683,126.4,126.35,3.55516089]
[1766455714905,0.05852267,126.4,126.35,3.55516089]
[1766455716107,3.26508416,126.44,126.37,3.21]
[1766455717104,0.05745191,126.42,126.39,0.06055785]
[1766455717306,2.17253607,126.42,126.39,0.06055785]
[1766455717805,3.38253607,126.42,126.39,0.00055785]
[1766455718612,2.17253607,126.42,126.39,0.00055785]
[1766455718913,0.05745191,126.42,126.39,0.00055785]
[1766455719410,3.32253607,126.42,126.39,0.00055785]
[1766455721908,1.20745191,126.42,126.39,0.00055785]
[1766455723610,2.11508416,126.41,126.36,3.21]
[1766455723910,0.05745191,126.42,126.36,3.21]
[1766455724317,2.11508416,126.45,126.38,3.21]
[1766455725414,0.05700013,126.43,126.4,0.05990896]
[1766455727315,2.11508416,126.47,126.4,3.26990896]
[1766455727515,2.11508416,126.47,126.4,96.72990896]
[1766455727714,2.11508416,126.47,126.41,3.21]
[1766455728114,1.26,126.48,126.41,3.21]
[1766455728517,1.26,126.48,126.43,0.05417225]
[1766455728720,2.11508416,126.47,126.43,0.05417225]
[1766455728910,2.11508416,126.45,126.43,0.00417225]
[1766455729615,3.32508416,126.45,126.39,96.67]
[1766455730622,0.05046977,126.43,126.41,0.05146037]
[1766455734412,0.05046977,126.43,126.36,3.21]
[1766455734413,1.16,126.42,126.36,3.21]
[1766455734822,2.11508416,126.41,126.36,3.21]
[1766455735122,3.27508416,126.41,126.35,93.46]
[1766455735318,0.05860317,126.39,126.37,0.05571986]
[1766455737421,0.05860317,126.39,126.35,93.46]
[1766455737624,2.17368733,126.39,126.35,93.46]
[1766455738528,2.17368733,126.39,126.36,0.05020014]
[1766455742018,0.05860317,126.39,126.36,0.05020014]
[1766455742615,0.05860317,126.39,126.36,3.26020014]
[1766455743728,94.45,126.43,126.36,3.26020014]
[1766455744824,0.05489301,126.41,126.36,3.26020014]
[1766455745825,0.05489301,126.41,126.36,121.24570014]
[1766455746027,0.00489301,126.41,126.38,3.28]
[1766455747318,3.28508416,126.45,126.38,3.28]
[1766455748425,0.06020215,126.43,126.4,0.06088169]
[1766455749737,1.22,126.5,126.42,3.28]
[1766455749922,3.33508416,126.5,126.42,3.28]
[1766455750125,9.51182735,126.5,126.42,3.28]
[1766455750324,1.22,126.49,126.42,3.28]
[1766455750729,1.22,126.49,126.44,0.05656671]
[1766455753626,1.22,126.51,126.44,3.33656671]
[1766455754726,3.33508416,126.51,126.44,3.33656671]
[1766455756032,1.22,126.5,126.44,0.05656671]
[1766455757849,2.11508416,126.49,126.44,0.05656671]
[1766455759135,3.33508416,126.49,126.44,0.05656671]
[1766455760241,1.22,126.48,126.44,0.05656671]
[1766455760430,2.11508416,126.47,126.44,0.05656671]
[1766455761434,1.22,126.48,126.44,0.05656671]
[1766455774548,1.22,126.48,126.39,204.2707]
[1766455774549,1.15,126.47,126.39,103.9648]
[1766455774751,1.15,126.47,126.4,3.4]
[1766455775551,0.05195167,126.45,126.42,0.05988079]
[1766455775947,1.21195167,126.45,126.42,0.05988079]
[1766455776248,1.21195167,126.45,126.39,93.44]
[1766455776846,1.21195167,126.45,126.39,96.94]
[1766455777044,1.21195167,126.45,126.41,0.05509393]
[1766455778754,0.05195167,126.45,126.41,0.05509393]
[1766455779958,0.05195167,126.45,126.41,3.55509393]
[1766455784858,1.15195167,126.45,126.37,104.0459]
[1766455785056,1.04,126.43,126.35,96.92]
[1766455785252,1.04,126.43,126.36,3.5]
[1766455785959,0.05362692,126.41,126.38,0.05541408]
[1766455791758,0.00362692,126.41,126.38,3.55541408]
[1766455791953,0.00362692,126.41,126.38,0.05541408]
[1766455800772,0.00362692,126.41,126.38,3.55541408]
[1766455801467,4.39304066,126.46,126.38,3.55541408]
[1766455801667,1.09,126.46,126.38,3.5]
[1766455801862,1.09,126.45,126.38,3.5]
[1766455802669,1.14815277,126.43,126.4,6.666e-05]
[1766455805884,1.14815277,126.43,126.4,6.666e-05]
[1766455807675,3.30304066,126.42,126.35,93.42]
[1766455807878,1.03,126.41,126.34,3.26]
[1766455808773,0.05720181,126.39,126.36,0.05388721]
[1766455811078,3.30304066,126.42,126.36,3.31388721]
[1766455811280,94.39,126.43,126.36,3.31388721]
[1766455812073,0.05450978,126.41,126.36,3.31388721]
[1766455814977,1.14450978,126.41,126.36,0.05388721]
[1766455815383,4.39304066,126.4,126.36,0.05388721]
[1766455816182,1.09,126.39,126.32,96.72]
[1766455817392,0.05280436,126.37,126.34,0.05624584]
[1766455818892,1.14280436,126.37,126.29,3.26]
[1766455819090,1.09,126.37,126.29,3.26]
[1766455819794,0.05525869,126.34,126.32,0.06013747]
[1766455821685,1.09,126.37,126.32,0.06013747]
[1766455821995,2.11774122,126.38,126.32,3.32013747]
[1766455822793,0.05404019,126.36,126.32,3.32013747]
[1766455825789,2.17178141,126.36,126.32,0.06013747]
[1766455826094,2.11774122,126.34,126.3,3.26]
[1766455826792,2.11774122,126.37,126.3,3.26]
[1766455827290,0.053364,126.35,126.32,0.05393188]
[1766455828397,3.31110522,126.35,126.32,0.00393188]
[1766455828598,2.11774122,126.33,126.28,3.26]
[1766455828793,1.193364,126.35,126.28,3.26]
[1766455828794,3.25774122,126.35,126.28,3.26]
[1766455829102,2.11774122,126.35,126.28,3.26]
[1766455829488,0.05277681,126.33,126.3,0.05070285]
[1766455832803,2.17051803,126.33,126.27,93.48]
[1766455833100,2.17051803,126.33,126.28,3.36]
[1766455833300,0.05277681,126.33,126.28,3.36]
[1766455833801,0.05277681,126.33,126.29,0.05256272]
[1766455834190,0.05277681,126.33,126.29,3.41256272]
[1766455842908,2.17051803,126.33,126.29,3.41256272]
[1766455844204,3.26051803,126.33,126.29,0.05256272]
[1766455846406,2.17051803,126.33,126.29,3.40256272]
[1766455851112,0.05277681,126.33,126.29,3.40256272]
[1766455861427,2.11774122,126.36,126.29,3.40256272]
[1766455862628,1.09,126.37,126.3,3.35]
[1766455862829,0.05300242,126.35,126.32,3.4070988]
[1766455863025,0.00300242,126.35,126.32,3.4070988]
[1766455866539,93.42,126.4,126.33,3.26]
[1766455866832,2.11774122,126.39,126.33,3.26]
[1766455867636,0.06014851,126.37,126.35,0.05474162]
[1766455868245,0.00014851,126.37,126.35,0.05474162]
[1766455868740,2.11774122,126.43,126.35,3.31474162]
[1766455868929,8.30879251,126.43,126.35,3.26]
[1766455869326,9.55879251,126.43,126.35,3.26]
[1766455869736,0.05793312,126.4,126.38,0.0514474]
[1766455876352,93.42,126.45,126.38,3.3114474]
[1766455876642,8.4314,126.46,126.38,3.3114474]
[1766455876847,8.4314,126.46,126.38,3.26]
[1766455877043,1.31,126.46,126.38,3.26]
[1766455877342,0.05093827,126.43,126.41,0.0530391]
[1766455879146,3.47774122,126.48,126.41,3.3130391]
[1766455879946,0.05961968,126.46,126.41,3.3130391]
[1766455883050,3.5373609,126.46,126.41,3.3130391]
[1766455883252,3.5373609,126.46,126.41,0.0530391]
[1766455883955,1.41961968,126.46,126.41,0.0530391]
[1766455887947,1.36,126.45,126.41,0.0530391]
[1766455893664,0.05961968,126.46,126.41,3.3230391]
[1766455902466,0.05961968,126.46,126.42,3.46]
[1766455907662,1.36,126.45,126.41,0.0530391]
[1766455910975,1.36,126.45,126.37,3.46]
[1766455911873,0.05594313,126.42,126.4,0.05861712]
[1766455919379,1.31,126.46,126.4,3.51861712]
[1766455919580,4.6750601,126.48,126.4,3.51861712]
[1766455919779,4.6750601,126.48,126.4,3.46]
[1766455920475,0.05771054,126.45,126.43,0.05629654]
[1766455921877,0.05771054,126.45,126.38,3.46]
[1766455921878,1.42771054,126.45,126.38,3.46]
[1766455922066,1.37,126.45,126.38,3.46]
[1766455922670,0.06020409,126.43,126.4,0.05660001]
[1766455923577,0.06020409,126.43,126.4,3.51660001]
[1766455924277,0.06020409,126.43,126.4,0.05660001]
[1766455927179,1.43020409,126.43,126.4,0.05660001]
[1766455928577,0.06020409,126.43,126.4,0.05660001]
[1766455928778,0.00020409,126.43,126.4,3.52660001]
[1766455934490,0.00020409,126.43,126.4,0.05660001]
[1766455940105,4.6750601,126.42,126.36,3.47]
[1766455941090,0.05615644,126.4,126.38,0.05561677]
[1766455941289,0.05615644,126.4,126.36,3.47]
[1766455941693,3.36121654,126.4,126.33,3.47]
[1766455941892,4.6750601,126.4,126.33,3.47]
[1766455942405,0.05246025,126.38,126.35,0.05835723]
[1766455943398,3.35752035,126.38,126.33,3.47]
[1766455943600,4.72752035,126.38,126.33,3.47]
[1766455944603,4.72752035,126.38,126.34,0.05657806]
[1766455945107,0.05246025,126.38,126.34,3.52657806]
[1766455945899,2.17022358,126.38,126.34,3.52657806]
[1766455951311,2.17022358,126.38,126.34,0.05657806]
[1766455952107,2.11776333,126.36,126.32,3.21]
[1766455953210,0.05513081,126.35,126.33,0.05733727]
[1766455954410,0.05513081,126.35,126.25,2.11776333]
[1766455954411,2.11776333,126.34,126.3,3.21]
[1766455955314,0.05287193,126.33,126.31,0.05736394]
[1766455956720,2.11776333,126.32,126.28,3.4]
[1766455958012,2.11776333,126.32,126.29,0.05895834]
[1766455960805,3.43776333,126.32,126.29,0.05895834]
[1766455961005,3.43776333,126.32,126.26,96.88]
[1766455961613,3.43776333,126.32,126.27,3.4]
[1766455962009,0.05125728,126.31,126.28,0.054042]
[1766455964205,2.11776333,126.3,126.25,3.4]
[1766455965317,2.11776333,126.3,126.26,0.05854386]
[1766455967320,1.32,126.29,126.26,0.05854386]
[1766455967716,1.32,126.29,126.23,3.4]
[1766455968708,0.05112268,126.27,126.25,0.05966912]
[1766455969818,2.11776333,126.26,126.21,3.4]
[1766455970722,0.0510263,126.25,126.22,0.05074004]
[1766455971824,0.0510263,126.25,126.18,93.52]
[1766455972018,2.11776333,126.24,126.18,93.52]
[1766455972812,0.05438431,126.22,126.2,0.05152859]
[1766455973519,0.00438431,126.22,126.2,0.05152859]
[1766455976225,0.00438431,126.22,126.2,3.45152859]
[1766455977422,2.11776333,126.27,126.2,3.45152859]
[1766455978029,2.45,126.28,126.2,3.45152859]
[1766455978230,2.45,126.28,126.2,3.4]
[1766455978525,0.00023878,126.25,126.23,0.06009604]
[1766455985848,0.00023878,126.25,126.23,3.38009604]
[1766455988240,4.61776333,126.3,126.23,3.38009604]
[1766455988834,4.61776333,126.28,126.23,3.38009604]
[1766455989038,4.61776333,126.28,126.23,3.32]
[1766455989237,0.0607426,126.27,126.24,0.05713577]
[1766455992548,7.1298,126.31,126.24,3.37713577]
[1766455992549,4.61776333,126.31,126.24,3.37713577]
[1766455993452,0.05478284,126.29,126.24,3.37713577]
[1766455995147,4.73254617,126.29,126.24,0.05713577]
[1766455997158,2.17254617,126.29,126.24,3.37713577]
[1766455999251,4.73254617,126.29,126.24,0.05713577]
[1766456003860,4.67776333,126.27,126.24,0.05713577]
[1766456006049,2.56,126.26,126.2,96.9]
[1766456007063,0.05601965,126.24,126.22,0.05735719]
[1766456007962,0.05601965,126.24,126.2,96.9]
[1766456008164,2.56601965,126.24,126.18,3.32]
[1766456008965,2.56601965,126.24,126.2,0.05119686]
[1766456009355,0.05601965,126.24,126.2,0.05119686]
[1766456018576,0.05601965,126.24,126.2,3.35119686]
[1766456024173,96.79477769,126.27,126.2,3.35119686]
[1766456024375,2.57,126.3,126.2,3.35119686]
[1766456024580,2.57,126.3,126.2,3.3]
[1766456024780,8.77930466,126.3,126.2,3.3]
[1766456025176,0.05914328,126.26,126.2,3.3]
[1766456025382,0.05914328,126.26,126.24,0.0525982]
[1766456025579,0.05914328,126.26,126.24,0.05058281]
[1766456029484,9.7005,126.3,126.24,0.05058281]
[1766456030487,0.05195566,126.28,126.24,0.05058281]
[1766456032287,0.05195566,126.28,126.24,3.35058281]
[1766456036093,0.00195566,126.28,126.24,3.35058281]
[1766456036584,96.13,126.32,126.24,3.35058281]
[1766456036784,96.13,126.32,126.24,3.3]
[1766456036986,2.63,126.32,126.25,3.3]
[1766456037391,2.68,126.3,126.23,3.3]
[1766456037594,0.05908108,126.28,126.25,0.05070634]
[1766456038589,2.68,126.32,126.25,3.35070634]
[1766456038784,2.68,126.32,126.25,3.3]
[1766456039793,0.0577062,126.3,126.27,0.05013189]
[1766456042494,2.74,126.34,126.27,3.35013189]
[1766456043599,0.05707154,126.32,126.27,3.35013189]
[1766456065725,2.84707154,126.32,126.27,3.35013189]
[1766456067935,2.12004632,126.31,126.27,3.35013189]
[1766456069533,2.17711786,126.32,126.27,3.35013189]
[1766456077041,0.05707154,126.32,126.27,3.35013189]
[1766456097147,2.12004632,126.31,126.27,3.35013189]
[1766456097348,4.91004632,126.31,126.27,0.05013189]
[1766456097950,2.12004632,126.29,126.27,0.05013189]
[1766456098246,2.17525321,126.29,126.27,0.05013189]
[1766456111158,0.05520689,126.29,126.27,0.05013189]
[1766456112052,2.12004632,126.32,126.27,3.23013189]
[1766456112251,2.85,126.33,126.27,3.23013189]
[1766456112453,2.12004632,126.34,126.28,3.18]
[1766456112954,0.0518686,126.32,126.3,3.23024534]
[1766456113157,98.50004632,126.36,126.3,3.23024534]
[1766456114060,0.05990892,126.34,126.3,3.23024534]
[1766456122871,5.02004632,126.37,126.3,3.23024534]
[1766456123872,0.05168819,126.35,126.3,10.36004534]
[1766456124070,0.05168819,126.35,126.32,3.18]
[1766456124568,2.12004632,126.38,126.32,3.18]
[1766456124964,3.01,126.39,126.32,3.18]
[1766456125665,3.01,126.39,126.34,0.05891647]
[1766456125666,0.05654356,126.37,126.34,0.05891647]
[1766456126874,0.05654356,126.37,126.34,3.23891647]
[1766456127168,98.64004632,126.4,126.34,3.23891647]
[1766456127871,5.18004632,126.4,126.34,3.23891647]
[1766456128171,0.05562245,126.38,126.34,3.23891647]
[1766456128869,3.11562245,126.38,126.34,0.05891647]
[1766456129268,3.06,126.37,126.34,0.05891647]
[1766456135578,0.05562245,126.38,126.34,0.05891647]
[1766456135979,3.11562245,126.38,126.34,0.05891647]
[1766456158301,3.11562245,126.38,126.32,3.18]
[1766456159304,3.11562245,126.38,126.34,0.05589428]
[1766456163600,3.11562245,126.38,126.31,96.9]
[1766456164603,3.11562245,126.38,126.33,0.0583252]
[1766456167999,2.89,126.36,126.3,3.4]
[1766456168908,0.05804608,126.34,126.32,0.05136008]
[1766456171600,2.94804608,126.34,126.32,0.00136008]
[1766456172709,2.94804608,126.34,126.29,3.4]
[1766456173411,2.84,126.33,126.27,3.4]
[1766456173612,0.05464424,126.31,126.29,0.05146119]
[1766456174714,2.89464424,126.31,126.26,93.5]
[1766456175109,0.05464424,126.31,126.27,3.4]
[1766456175809,0.05464424,126.31,126.28,0.05960345]
[1766456177407,0.05464424,126.31,126.28,3.45960345]
[1766456177608,0.00464424,126.31,126.28,3.45960345]
[1766456180706,6.14802039,126.36,126.28,3.45960345]
[1766456180902,2.84,126.36,126.29,3.4]
[1766456181908,0.05222451,126.34,126.31,3.45681089]
[1766456182110,0.00222451,126.34,126.31,3.45681089]
[1766456197442,2.89,126.38,126.31,3.45681089]
[1766456198244,0.05018625,126.36,126.31,3.45681089]
[1766456198540,0.05018625,126.36,126.31,10.58611089]
[1766456198730,0.05018625,126.36,126.32,3.46]
[1766456206846,0.00018625,126.36,126.32,10.5887]
[1766456207047,5.05841381,126.42,126.34,3.46]
[1766456207241,5.05841381,126.42,126.35,3.46]
[1766456207442,5.05841381,126.42,126.37,3.46]
[1766456208443,0.057419,126.41,126.38,0.05158236]
[1766456208649,5.05841381,126.44,126.38,3.51158236]
[1766456208848,5.05841381,126.44,126.38,3.46]
[1766456209547,2.94,126.44,126.38,3.46]
[1766456209749,0.05355246,126.42,126.4,0.05451707]
[1766456209951,3.05355246,126.42,126.36,3.46]
[1766456210451,0.05355246,126.42,126.36,114.3206]
[1766456210654,0.05355246,126.42,126.37,3.46]
[1766456210951,0.05355246,126.42,126.38,3.52090707]
[1766456214544,0.00355246,126.42,126.38,3.52090707]
[1766456215145,0.00355246,126.42,126.4,3.46]
[1766456215545,3.05,126.46,126.4,3.46]
[1766456216554,0.05898653,126.44,126.42,0.0522808]
[1766456219563,98.58841381,126.48,126.42,3.5122808]
[1766456220348,0.05066702,126.46,126.42,3.5122808]
[1766456220654,0.05066702,126.46,126.42,0.0522808]
[1766456220655,5.27908083,126.46,126.42,0.0522808]
[1766456220854,3.06,126.45,126.42,0.0022808]
[1766456221356,0.05066702,126.46,126.42,3.4622808]
[1766456222456,5.22908083,126.46,126.42,0.0022808]
[1766456226256,3.06,126.45,126.42,0.0022808]
[1766456226462,2.11841381,126.44,126.4,3.46]
[1766456227057,5.17841381,126.44,126.38,3.47]
[1766456227463,0.05094587,126.42,126.4,0.06017368]
[1766456229054,3.11094587,126.42,126.4,0.00017368]
[1766456229256,5.22935968,126.42,126.36,3.47]
[1766456229457,0.05094587,126.42,126.36,3.47]
[1766456230157,0.05094587,126.42,126.38,0.05899184]
[1766456231658,3.05094587,126.42,126.38,0.05899184]
[1766456231862,3.0,126.41,126.38,0.05899184]
[1766456233358,5.05841381,126.4,126.34,3.47]
[1766456233558,2.94,126.39,126.34,3.47]
[1766456233758,5.05841381,126.38,126.32,96.93]
[1766456234461,5.05841381,126.38,126.34,0.05807215]
[1766456234462,0.0552049,126.36,126.34,0.05807215]
[1766456237269,2.11841381,126.4,126.34,3.52807215]
[1766456238368,0.05814478,126.38,126.34,3.52807215]
[1766456242180,2.11841381,126.4,126.35,3.47]
[1766456242664,2.94,126.41,126.35,3.47]
[1766456243272,0.05594548,126.39,126.37,0.05647015]
[1766456243977,93.38,126.43,126.37,3.24647015]
[1766456243978,3.05,126.43,126.37,3.24647015]
[1766456244182,5.16841381,126.43,126.37,3.24647015]
[1766456245177,0.0522219,126.41,126.37,3.24647015]
[1766456246578,0.0022219,126.41,126.37,3.24647015]
[1766456246773,5.22841381,126.45,126.38,3.19]
[1766456247082,2.11841381,126.46,126.4,3.19]
[1766456247777,2.11841381,126.46,126.42,0.06000225]
[1766456249979,6.46513226,126.47,126.42,0.06000225]
[1766456251377,3.16,126.46,126.42,2.25e-06]
[1766456252482,0.05444906,126.45,126.42,2.25e-06]
[1766456260788,3.15444906,126.45,126.42,2.25e-06]
[1766456268288,3.1,126.44,126.37,10.4658]
[1766456268589,3.1,126.42,126.34,3.34]
[1766456269192,0.05033866,126.39,126.37,0.05866406]
[1766456269390,3.09033866,126.39,126.33,3.34]
[1766456270286,3.09033866,126.39,126.35,0.05983698]
[1766456271394,0.05033866,126.39,126.35,3.39983698]
[1766456272687,3.09033866,126.39,126.35,0.05983698]
[1766456273401,2.98,126.38,126.31,10.4695]
[1766456273694,2.98,126.38,126.32,3.34]
[1766456274289,0.05820165,126.36,126.34,0.05602306]
[1766456274493,2.98,126.4,126.34,3.39602306]
[1766456275587,0.05005583,126.38,126.34,3.39602306]
[1766456280400,3.09005583,126.38,126.34,0.05602306]
[1766456282989,6.39518809,126.38,126.3,103.9299]
[1766456283190,2.98,126.37,126.3,103.9299]
[1766456283394,2.98,126.37,126.31,3.34]
[1766456284094,0.05475807,126.35,126.33,0.05207776]
[1766456287797,2.99,126.39,126.33,3.43207776]
[1766456288104,2.99,126.39,126.33,3.38]
[1766456288801,0.05580146,126.37,126.35,0.06045022]
[1766456289303,6.34513226,126.41,126.35,0.06045022]
[1766456289504,3.1,126.4,126.35,0.06045022]
[1766456290203,0.05306562,126.39,126.35,0.06045022]
[1766456293306,0.05306562,126.39,126.35,3.44045022]
[1766456296198,6.45819788,126.39,126.35,0.06045022]
[1766456296396,3.1,126.38,126.35,0.06045022]
[1766456298602,3.1,126.38,126.31,7.1293]
[1766456298802,3.1,126.38,126.31,10.5093]
[1766456299713,0.05447709,126.36,126.33,0.05746981]
[1766456303017,3.09447709,126.36,126.29,3.38]
[1766456304111,3.09447709,126.36,126.31,0.05843658]
[1766456308616,2.92,126.34,126.27,3.38]
[1766456309713,2.92,126.34,126.26,93.48]
[1766456309714,0.05839411,126.32,126.29,0.05400286]
[1766456327539,5.08767216,126.32,126.26,3.46]
[1766456327738,2.86,126.31,126.26,3.46]
[1766456328737,2.86,126.31,126.27,0.06042067]
[1766456331240,2.17767216,126.32,126.27,3.52042067]
[1766456331437,5.03767216,126.32,126.27,3.52042067]
[1766456331637,2.91839411,126.32,126.27,3.52042067]
[1766456332245,0.05839411,126.32,126.27,3.52042067]
[1766456338553,2.91839411,126.32,126.27,3.52042067]
[1766456355859,0.05839411,126.32,126.27,3.52042067]
[1766456356555,2.87,126.34,126.27,3.52042067]
[1766456356764,5.04927805,126.35,126.27,3.52042067]
[1766456356961,2.93,126.34,126.28,3.5]
[1766456357560,0.05835766,126.32,126.3,0.0596155]
[1766456358164,0.05835766,126.32,126.28,3.5]
[1766456359267,0.05835766,126.32,126.29,0.05689115]
[1766456364275,0.05835766,126.32,126.29,3.55689115]
[1766456366986,2.92,126.38,126.31,3.5]
[1766456368080,0.05825628,126.36,126.33,0.06056794]
[1766456372482,6.28725626,126.36,126.3,3.5]
[1766456372680,2.86,126.35,126.3,3.5]
[1766456373591,2.86,126.35,126.31,0.05088036]
[1766456375897,2.86,126.4,126.31,3.46088036]
[1766456376085,2.92,126.39,126.31,3.41]
[1766456376480,2.92,126.39,126.32,3.41]
[1766456376892,0.05729827,126.37,126.34,0.05362664]
[1766456377084,0.05729827,126.37,126.34,3.43362664]
[1766456377392,4.91563373,126.41,126.34,3.43362664]
[1766456378297,0.06025665,126.39,126.34,3.43362664]
[1766456379391,0.00025665,126.39,126.34,3.43362664]
[1766456379584,3.05,126.46,126.37,3.38]
[1766456379890,3.05,126.46,126.38,3.38]
[1766456380291,3.05,126.45,126.38,3.38]
[1766456380493,0.0501418,126.43,126.4,0.05365647]
[1766456382791,3.1001418,126.43,126.4,0.00365647]
[1766456383089,3.1001418,126.43,126.37,93.52]
[1766456383992,3.1001418,126.43,126.39,0.05521049]
[1766456384195,3.1001418,126.43,126.37,93.52]
[1766456385196,3.1001418,126.43,126.39,0.05572239]
[1766456387294,3.30899998,126.42,126.36,3.38]
[1766456387488,2.94,126.41,126.34,10.5078]
[1766456387687,2.94,126.41,126.35,3.38]
[1766456388398,0.05944008,126.39,126.37,0.05051701]
[1766456391696,0.05944008,126.39,126.35,3.38]
[1766456392297,0.05944008,126.39,126.33,3.38]
[1766456392498,2.99944008,126.39,126.33,3.38]
[1766456392699,2.99944008,126.39,126.35,0.0544318]
[1766456393395,2.99944008,126.39,126.32,93.48]
[1766456393603,6.24899998,126.38,126.32,93.48]
[1766456394302,0.05058097,126.36,126.34,0.05161114]
[1766456402104,6.24899998,126.4,126.34,3.43161114]
[1766456402997,2.94,126.4,126.34,3.43161114]
[1766456403197,0.05764701,126.38,126.34,3.43161114]
[1766456408203,3.04764701,126.38,126.34,0.05161114]
[1766456422720,0.05764701,126.38,126.34,3.51161114]
[1766456431141,2.99,126.4,126.34,3.51161114]
[1766456431341,6.17688378,126.41,126.34,3.51161114]
[1766456431528,10.1637,126.42,126.34,3.46]
[1766456432336,0.05004852,126.39,126.37,0.05734065]
[1766456432739,3.09004852,126.39,126.33,10.3781]
[1766456433047,3.09004852,126.39,126.34,3.25]
[1766456433740,3.09004852,126.39,126.33,7.1281]
[1766456433741,0.05004852,126.39,126.35,3.30024188]
[1766456439547,4.852e-05,126.39,126.35,3.30024188]
[1766456442043,3.04004852,126.39,126.35,0.05024188]
[1766456442848,4.852e-05,126.39,126.35,3.32024188]
[1766456447255,3.04004852,126.39,126.35,0.05024188]
[1766456448748,5.15733527,126.38,126.35,0.00024188]
[1766456449149,2.99,126.37,126.31,3.27]
[1766456450153,0.05332246,126.35,126.33,0.05555545]
[1766456451048,0.00332246,126.35,126.33,3.32555545]
[1766456457952,2.99,126.39,126.33,3.32555545]